[Event "Late-Titled-Tuesday-Blitz-February-13-2024"]
[Site "Chess.com"]
[Date "2024.02.13"]
[Round "4"]
[White "Rinqed222"]
[Black "cande_francisco"]
[Result "1-0"]
[WhiteElo "2271"]
[BlackElo "2479"]
[TimeControl "180+1"]
[EndTime "14:38:04 PST"]
[Termination "Rinqed222 won by checkmate"]

1. e4 {[%clk 0:02:48.1]} 1... c5 {[%clk 0:03:00]} 2. Nc3 {[%clk 0:02:48.2]} 2...
g6 {[%clk 0:03:00.3]} 3. f4 {[%clk 0:02:37.2]} 3... Bg7 {[%clk 0:03:00.4]} 4.
Nf3 {[%clk 0:02:37.6]} 4... Nc6 {[%clk 0:03:01.1]} 5. Bb5 {[%clk 0:02:36.8]}
5... Nd4 {[%clk 0:03:01.7]} 6. O-O {[%clk 0:02:36.8]} 6... Nxb5 {[%clk
0:03:02.1]} 7. Nxb5 {[%clk 0:02:37.6]} 7... d5 {[%clk 0:03:02.7]} 8. exd5 {[%clk
0:02:37.5]} 8... a6 {[%clk 0:03:02.2]} 9. Nc3 {[%clk 0:02:37.7]} 9... Nf6 {[%clk
0:03:03]} 10. d4 {[%clk 0:02:37.9]} 10... Nxd5 {[%clk 0:03:03.6]} 11. dxc5
{[%clk 0:02:37.2]} 11... Nxc3 {[%clk 0:03:04.1]} 12. Qxd8+ {[%clk 0:02:36.7]}
12... Kxd8 {[%clk 0:03:05]} 13. bxc3 {[%clk 0:02:37.2]} 13... Bxc3 {[%clk
0:03:05.7]} 14. Rb1 {[%clk 0:02:37.8]} 14... Kc7 {[%clk 0:03:05]} 15. Rb3 {[%clk
0:02:34.7]} 15... Bf6 {[%clk 0:03:02.9]} 16. Be3 {[%clk 0:02:21.7]} 16... Be6
{[%clk 0:03:01.5]} 17. Rb6 {[%clk 0:02:20.1]} 17... Bxa2 {[%clk 0:02:55.9]} 18.
Nd2 {[%clk 0:01:58.3]} 18... Bd5 {[%clk 0:02:44.7]} 19. Rfb1 {[%clk 0:01:55.8]}
19... Rhd8 {[%clk 0:02:25.4]} 20. c4 {[%clk 0:01:50.6]} 20... Bc6 {[%clk
0:02:22.7]} 21. Nb3 {[%clk 0:01:50.5]} 21... Rd3 {[%clk 0:02:10]} 22. Kf2 {[%clk
0:01:29.8]} 22... Bc3 {[%clk 0:01:52.8]} 23. Nc1 {[%clk 0:01:24.3]} 23... Rd1
{[%clk 0:01:47.8]} 24. R1b3 {[%clk 0:01:09.1]} 24... Ba5 {[%clk 0:01:44.6]} 25.
Nd3 {[%clk 0:00:46.8]} 25... Rd8 {[%clk 0:01:28.7]} 26. Ne5 {[%clk 0:00:44.4]}
26... Be1+ {[%clk 0:00:48.5]} 27. Ke2 {[%clk 0:00:39.7]} 27... Bxg2 {[%clk
0:00:48.6]} 28. c6 {[%clk 0:00:35.1]} 28... Bf1+ {[%clk 0:00:06.8]} 29. Kf3
{[%clk 0:00:21.2]} 29... bxc6 {[%clk 0:00:04.7]} 30. Rxc6# {[%clk 0:00:20.2]}
1-0

[Event "Late-Titled-Tuesday-Blitz-February-13-2024"]
[Site "Chess.com"]
[Date "2024.02.13"]
[Round "4"]
[White "TenisMaster"]
[Black "hurricane7791"]
[Result "1-0"]
[WhiteElo "2936"]
[BlackElo "2719"]
[TimeControl "180+1"]
[EndTime "14:38:05 PST"]
[Termination "TenisMaster won by resignation"]

1. e4 {[%clk 0:03:00.9]} 1... c5 {[%clk 0:02:48.4]} 2. Nf3 {[%clk 0:03:00.2]}
2... d6 {[%clk 0:02:47.4]} 3. d4 {[%clk 0:03:00.1]} 3... cxd4 {[%clk 0:02:48.3]}
4. Nxd4 {[%clk 0:03:00.6]} 4... Nf6 {[%clk 0:02:40]} 5. Nc3 {[%clk 0:03:00.8]}
5... a6 {[%clk 0:02:40.4]} 6. Be3 {[%clk 0:02:59.6]} 6... e5 {[%clk 0:02:40.4]}
7. Nb3 {[%clk 0:02:59.6]} 7... Be6 {[%clk 0:02:39.8]} 8. f3 {[%clk 0:02:59.2]}
8... h5 {[%clk 0:02:40.1]} 9. Nd5 {[%clk 0:02:58.8]} 9... Bxd5 {[%clk
0:02:39.3]} 10. exd5 {[%clk 0:02:59.3]} 10... Nbd7 {[%clk 0:02:40.2]} 11. Qd2
{[%clk 0:02:57.2]} 11... g6 {[%clk 0:02:40.4]} 12. Be2 {[%clk 0:02:56.3]} 12...
Bg7 {[%clk 0:02:40.9]} 13. O-O-O {[%clk 0:02:54.6]} 13... O-O {[%clk 0:02:34]}
14. Kb1 {[%clk 0:02:47.7]} 14... a5 {[%clk 0:02:32.6]} 15. a4 {[%clk 0:02:46.1]}
15... Qc7 {[%clk 0:02:25.9]} 16. Bb5 {[%clk 0:02:41.2]} 16... Nb6 {[%clk
0:02:23.5]} 17. Bf2 {[%clk 0:01:52]} 17... Rfc8 {[%clk 0:02:03.3]} 18. Bxb6
{[%clk 0:01:16.4]} 18... Qxb6 {[%clk 0:02:01.9]} 19. h4 {[%clk 0:01:16.6]} 19...
e4 {[%clk 0:02:00.2]} 20. c3 {[%clk 0:01:15]} 20... Kh7 {[%clk 0:01:50.7]} 21.
Rhe1 {[%clk 0:01:14.5]} 21... Rc7 {[%clk 0:01:45.9]} 22. fxe4 {[%clk 0:01:08.7]}
22... Ng4 {[%clk 0:01:44.3]} 23. Nd4 {[%clk 0:01:01.4]} 23... Re7 {[%clk
0:01:38.5]} 24. Qf4 {[%clk 0:00:57.7]} 24... Be5 {[%clk 0:01:27.2]} 25. Qg5
{[%clk 0:00:50]} 25... Bf6 {[%clk 0:01:27.4]} 26. Qf4 {[%clk 0:00:49.2]} 26...
Be5 {[%clk 0:01:27.7]} 27. Qd2 {[%clk 0:00:47.6]} 27... Rc8 {[%clk 0:01:22.1]}
28. Re2 {[%clk 0:00:46.2]} 28... Bg7 {[%clk 0:01:21.6]} 29. Nf3 {[%clk
0:00:45.3]} 29... Bh6 {[%clk 0:01:19.8]} 30. Qd3 {[%clk 0:00:40.9]} 30... Qc7
{[%clk 0:01:15.7]} 31. e5 {[%clk 0:00:36.4]} 31... Nxe5 {[%clk 0:01:08.9]} 32.
Nxe5 {[%clk 0:00:36]} 32... Rxe5 {[%clk 0:01:09.8]} 33. Rxe5 {[%clk 0:00:36.1]}
33... dxe5 {[%clk 0:01:09.3]} 34. d6 {[%clk 0:00:37]} 34... Qc5 {[%clk
0:01:07.1]} 35. Qf3 {[%clk 0:00:35.4]} 35... Kg7 {[%clk 0:01:00.5]} 36. Qxb7
{[%clk 0:00:33.8]} 36... Rd8 {[%clk 0:01:01]} 37. Qe7 {[%clk 0:00:33.3]} 37...
Qb6 {[%clk 0:00:38.5]} 38. Be8 {[%clk 0:00:27.2]} 38... Rb8 {[%clk 0:00:30]} 39.
Qxf7+ {[%clk 0:00:27]} 39... Kh8 {[%clk 0:00:30.1]} 40. Bb5 {[%clk 0:00:26.5]}
40... e4 {[%clk 0:00:26.3]} 41. Qxg6 {[%clk 0:00:25.8]} 41... Bg7 {[%clk
0:00:25.7]} 42. Qxh5+ {[%clk 0:00:25.8]} 42... Kg8 {[%clk 0:00:26.3]} 43. Bc4+
{[%clk 0:00:26]} 1-0

[Event "Late-Titled-Tuesday-Blitz-February-13-2024"]
[Site "Chess.com"]
[Date "2024.02.13"]
[Round "4"]
[White "lluiss"]
[Black "Nick12772"]
[Result "1-0"]
[WhiteElo "2160"]
[BlackElo "2359"]
[TimeControl "180+1"]
[EndTime "14:38:06 PST"]
[Termination "lluiss won by resignation"]

1. e4 {[%clk 0:02:55.4]} 1... e6 {[%clk 0:03:00.4]} 2. d4 {[%clk 0:02:54]} 2...
d5 {[%clk 0:03:01.3]} 3. e5 {[%clk 0:02:54.1]} 3... c5 {[%clk 0:03:01.3]} 4. Nf3
{[%clk 0:02:54]} 4... cxd4 {[%clk 0:03:00.7]} 5. Nxd4 {[%clk 0:02:52.7]} 5...
Nc6 {[%clk 0:03:01.2]} 6. Nf3 {[%clk 0:02:52.8]} 6... Nge7 {[%clk 0:02:59.4]} 7.
Bd3 {[%clk 0:02:52.1]} 7... Ng6 {[%clk 0:02:59.2]} 8. Qe2 {[%clk 0:02:50]} 8...
Qc7 {[%clk 0:02:50.2]} 9. Bxg6 {[%clk 0:02:49]} 9... hxg6 {[%clk 0:02:49.7]} 10.
O-O {[%clk 0:02:49.5]} 10... Be7 {[%clk 0:02:42.8]} 11. Re1 {[%clk 0:02:47.6]}
11... Qb6 {[%clk 0:02:35.5]} 12. c3 {[%clk 0:02:39]} 12... Bd7 {[%clk
0:02:25.6]} 13. Be3 {[%clk 0:02:38.8]} 13... Qc7 {[%clk 0:02:25.8]} 14. Bg5
{[%clk 0:02:38.1]} 14... Qd8 {[%clk 0:02:12.9]} 15. Bxe7 {[%clk 0:02:31.7]}
15... Qxe7 {[%clk 0:02:13.8]} 16. Nbd2 {[%clk 0:02:31.4]} 16... a6 {[%clk
0:02:03.7]} 17. Nb3 {[%clk 0:02:31]} 17... Rc8 {[%clk 0:01:58.1]} 18. Nbd4
{[%clk 0:02:30.8]} 18... Nxd4 {[%clk 0:01:56.2]} 19. Nxd4 {[%clk 0:02:29.9]}
19... Qh4 {[%clk 0:01:48.8]} 20. h3 {[%clk 0:02:21.4]} 20... g5 {[%clk
0:01:34.5]} 21. Qg4 {[%clk 0:02:21]} 21... Qh6 {[%clk 0:01:25.1]} 22. Nf3 {[%clk
0:02:16.3]} 22... f6 {[%clk 0:01:18.1]} 23. exf6 {[%clk 0:02:14.1]} 23... gxf6
{[%clk 0:01:19]} 24. Rxe6+ {[%clk 0:02:12.9]} 24... Kf7 {[%clk 0:00:49.1]} 25.
Rae1 {[%clk 0:02:12.3]} 25... Rhe8 {[%clk 0:00:43.2]} 26. Nd4 {[%clk 0:02:12.4]}
26... Bxe6 {[%clk 0:00:35.8]} 27. Rxe6 {[%clk 0:02:07.9]} 27... Qg6 {[%clk
0:00:27.5]} 28. Rd6 {[%clk 0:01:45.6]} 28... Qb1+ {[%clk 0:00:24.4]} 29. Kh2
{[%clk 0:01:44.6]} 29... Qe4 {[%clk 0:00:25]} 30. Qh5+ {[%clk 0:01:41.9]} 30...
Ke7 {[%clk 0:00:08.6]} 31. Re6+ {[%clk 0:01:40.5]} 31... Qxe6 {[%clk 0:00:08.2]}
32. Nxe6 {[%clk 0:01:40.6]} 32... Kxe6 {[%clk 0:00:09.1]} 33. Qg4+ {[%clk
0:01:31.8]} 33... Kd6 {[%clk 0:00:09.2]} 34. Qf5 {[%clk 0:01:31.9]} 34... Re6
{[%clk 0:00:08.7]} 35. Qg4 {[%clk 0:01:21.8]} 35... Rce8 {[%clk 0:00:08.6]} 36.
Qb4+ {[%clk 0:01:21.8]} 36... Kc6 {[%clk 0:00:08.4]} 37. a4 {[%clk 0:01:20.4]}
37... b6 {[%clk 0:00:08]} 38. a5 {[%clk 0:01:19.6]} 38... bxa5 {[%clk
0:00:07.8]} 39. Qxa5 {[%clk 0:01:19.8]} 39... Kd6 {[%clk 0:00:08.1]} 40. Qxa6+
{[%clk 0:01:19.7]} 40... Ke5 {[%clk 0:00:08.9]} 41. Qd3 {[%clk 0:01:12.5]} 41...
Kd6 {[%clk 0:00:06]} 42. c4 {[%clk 0:01:12.4]} 42... Re5 {[%clk 0:00:06.6]} 43.
b4 {[%clk 0:01:11.3]} 43... Ke6 {[%clk 0:00:06.3]} 44. c5 {[%clk 0:01:10.8]}
44... Rd8 {[%clk 0:00:06]} 45. c6 {[%clk 0:01:09.2]} 45... Kd6 {[%clk
0:00:06.1]} 46. b5 {[%clk 0:01:08.8]} 46... Ree8 {[%clk 0:00:06.1]} 47. Qa3+
{[%clk 0:01:08.6]} 47... Kc7 {[%clk 0:00:06.6]} 48. Qc5 {[%clk 0:01:08.8]} 48...
d4 {[%clk 0:00:06.2]} 49. b6+ {[%clk 0:01:09]} 49... Kc8 {[%clk 0:00:06.3]} 50.
Qa5 {[%clk 0:01:00.6]} 1-0

[Event "Late-Titled-Tuesday-Blitz-February-13-2024"]
[Site "Chess.com"]
[Date "2024.02.13"]
[Round "4"]
[White "el008"]
[Black "hristos03"]
[Result "1-0"]
[WhiteElo "2555"]
[BlackElo "2377"]
[TimeControl "180+1"]
[EndTime "14:38:08 PST"]
[Termination "el008 won on time"]

1. Nf3 {[%clk 0:03:00.9]} 1... Nf6 {[%clk 0:02:57.1]} 2. b3 {[%clk 0:03:01.5]}
2... g6 {[%clk 0:02:56.8]} 3. Bb2 {[%clk 0:03:02.2]} 3... Bg7 {[%clk 0:02:57.3]}
4. g3 {[%clk 0:03:02.7]} 4... O-O {[%clk 0:02:57.1]} 5. Bg2 {[%clk 0:03:03.3]}
5... d5 {[%clk 0:02:57.6]} 6. c4 {[%clk 0:03:03.8]} 6... c6 {[%clk 0:02:57.3]}
7. O-O {[%clk 0:03:03.9]} 7... Bg4 {[%clk 0:02:53.5]} 8. d3 {[%clk 0:03:03.9]}
8... Bxf3 {[%clk 0:02:51]} 9. Bxf3 {[%clk 0:03:04]} 9... Nbd7 {[%clk 0:02:51.4]}
10. cxd5 {[%clk 0:03:01.5]} 10... cxd5 {[%clk 0:02:48.1]} 11. Nc3 {[%clk
0:03:01.9]} 11... Ne5 {[%clk 0:02:44.2]} 12. Bg2 {[%clk 0:02:59.4]} 12... Rc8
{[%clk 0:02:29.7]} 13. Rc1 {[%clk 0:02:59.1]} 13... Nc6 {[%clk 0:02:13.8]} 14.
a3 {[%clk 0:02:44.2]} 14... e5 {[%clk 0:02:11.4]} 15. b4 {[%clk 0:02:44.7]}
15... Re8 {[%clk 0:01:58.1]} 16. Qb3 {[%clk 0:02:44.7]} 16... Nd4 {[%clk
0:01:52.3]} 17. Qa2 {[%clk 0:02:42.8]} 17... e4 {[%clk 0:01:37.2]} 18. dxe4
{[%clk 0:02:26.6]} 18... Nxe4 {[%clk 0:01:09.9]} 19. e3 {[%clk 0:01:37.7]} 19...
Nxc3 {[%clk 0:00:48.6]} 20. Bxc3 {[%clk 0:01:38.6]} 20... Ne2+ {[%clk
0:00:49.2]} 21. Qxe2 {[%clk 0:01:38.4]} 21... Bxc3 {[%clk 0:00:49.6]} 22. Qd3
{[%clk 0:01:32.7]} 22... Bf6 {[%clk 0:00:32.9]} 23. Bxd5 {[%clk 0:01:31.6]}
23... Qd7 {[%clk 0:00:22.4]} 24. Qb3 {[%clk 0:01:24.7]} 24... Rxc1 {[%clk
0:00:16.3]} 25. Rxc1 {[%clk 0:01:25.6]} 25... Kg7 {[%clk 0:00:16.5]} 26. Rd1
{[%clk 0:01:20.2]} 26... Rd8 {[%clk 0:00:15.4]} 27. Bf3 {[%clk 0:01:19.2]} 27...
Qc7 {[%clk 0:00:15.2]} 28. Rxd8 {[%clk 0:01:14.3]} 28... Qxd8 {[%clk 0:00:15.5]}
29. Bxb7 {[%clk 0:01:14]} 29... Qd2 {[%clk 0:00:14.6]} 30. Bd5 {[%clk 0:01:11]}
30... Qc1+ {[%clk 0:00:05.2]} 31. Kg2 {[%clk 0:01:11.1]} 31... Qc7 {[%clk
0:00:06.1]} 32. Qd3 {[%clk 0:01:07.7]} 32... h5 {[%clk 0:00:05.4]} 33. h4 {[%clk
0:01:08.2]} 33... Be5 {[%clk 0:00:04.4]} 34. a4 {[%clk 0:01:08.3]} 34... Bf6
{[%clk 0:00:04.6]} 35. Qb3 {[%clk 0:01:08.4]} 35... Qe7 {[%clk 0:00:04.1]} 36.
a5 {[%clk 0:01:08.4]} 36... Qc7 {[%clk 0:00:04.1]} 37. Be4 {[%clk 0:01:05.1]}
37... Bd8 {[%clk 0:00:04]} 38. Bb1 {[%clk 0:01:04.9]} 38... Qe5 {[%clk 0:00:03]}
39. Ba2 {[%clk 0:01:04.9]} 39... Qe4+ {[%clk 0:00:03.3]} 40. Kg1 {[%clk
0:01:05]} 40... Qf5 {[%clk 0:00:03.7]} 41. Qb2+ {[%clk 0:01:04.8]} 41... Bf6
{[%clk 0:00:03.7]} 42. Qd2 {[%clk 0:01:05.5]} 42... Be7 {[%clk 0:00:03.3]} 43.
Bd5 {[%clk 0:01:01.4]} 43... Bxb4 {[%clk 0:00:02.3]} 44. Qd4+ {[%clk 0:01:00.8]}
44... Kh7 {[%clk 0:00:02]} 45. Bxf7 {[%clk 0:01:00.5]} 45... Be7 {[%clk
0:00:01.2]} 46. Qc4 {[%clk 0:00:58.6]} 46... Bf6 {[%clk 0:00:01.3]} 47. Bg8+
{[%clk 0:00:58.9]} 47... Kh6 {[%clk 0:00:01.1]} 48. Qf7 {[%clk 0:00:58.7]} 1-0

[Event "Late-Titled-Tuesday-Blitz-February-13-2024"]
[Site "Chess.com"]
[Date "2024.02.13"]
[Round "4"]
[White "DuleMudule"]
[Black "SaqoChess_Twitch"]
[Result "1-0"]
[WhiteElo "2860"]
[BlackElo "2684"]
[TimeControl "180+1"]
[EndTime "14:38:10 PST"]
[Termination "DuleMudule won by checkmate"]

1. d4 {[%clk 0:03:00.9]} 1... d5 {[%clk 0:02:58.7]} 2. Bf4 {[%clk 0:02:57.6]}
2... Nf6 {[%clk 0:02:56.7]} 3. e3 {[%clk 0:02:56.6]} 3... c6 {[%clk 0:02:55.9]}
4. c4 {[%clk 0:02:55.4]} 4... Bg4 {[%clk 0:02:54.8]} 5. Qb3 {[%clk 0:02:54.4]}
5... Qb6 {[%clk 0:02:54.1]} 6. c5 {[%clk 0:02:54.7]} 6... Qxb3 {[%clk
0:02:43.2]} 7. axb3 {[%clk 0:02:55.6]} 7... a6 {[%clk 0:02:38.3]} 8. b4 {[%clk
0:02:55.3]} 8... Nh5 {[%clk 0:02:28.7]} 9. h3 {[%clk 0:02:50.5]} 9... Nxf4
{[%clk 0:02:26]} 10. hxg4 {[%clk 0:02:50.2]} 10... Ng6 {[%clk 0:02:24.6]} 11. f4
{[%clk 0:02:44.3]} 11... e6 {[%clk 0:02:24]} 12. Nc3 {[%clk 0:02:42]} 12... Be7
{[%clk 0:02:17.5]} 13. Nf3 {[%clk 0:02:34.6]} 13... O-O {[%clk 0:02:15.3]} 14.
b5 {[%clk 0:02:25.8]} 14... f5 {[%clk 0:01:57.3]} 15. g5 {[%clk 0:02:08.7]}
15... Rc8 {[%clk 0:01:50.7]} 16. Kd2 {[%clk 0:02:02.5]} 16... Nf8 {[%clk
0:01:37.9]} 17. bxa6 {[%clk 0:01:58.6]} 17... bxa6 {[%clk 0:01:34.6]} 18. Ne5
{[%clk 0:01:53.6]} 18... a5 {[%clk 0:01:26.5]} 19. Ra2 {[%clk 0:01:30.8]} 19...
Nfd7 {[%clk 0:01:23.3]} 20. Nd3 {[%clk 0:01:26.5]} 20... Rc7 {[%clk 0:01:18]}
21. Be2 {[%clk 0:01:25.7]} 21... Rca7 {[%clk 0:01:17]} 22. Rha1 {[%clk
0:01:26.1]} 22... Bd8 {[%clk 0:01:12.4]} 23. b4 {[%clk 0:01:24.3]} 23... Kf7
{[%clk 0:01:04.8]} 24. g4 {[%clk 0:01:11]} 24... g6 {[%clk 0:01:03.4]} 25. gxf5
{[%clk 0:01:10.4]} 25... gxf5 {[%clk 0:01:04.3]} 26. b5 {[%clk 0:01:07.9]} 26...
Kg7 {[%clk 0:01:02.9]} 27. b6 {[%clk 0:01:06.6]} 27... Bxb6 {[%clk 0:00:59.5]}
28. cxb6 {[%clk 0:01:06.1]} 28... Nxb6 {[%clk 0:01:00.4]} 29. Nc5 {[%clk
0:01:06.3]} 29... Kf7 {[%clk 0:00:57.3]} 30. N3a4 {[%clk 0:01:00.8]} 30... Nxa4
{[%clk 0:00:55]} 31. Rxa4 {[%clk 0:01:01.3]} 31... Nd7 {[%clk 0:00:48.4]} 32.
Nxd7 {[%clk 0:00:57.7]} 32... Rxd7 {[%clk 0:00:49.3]} 33. Rxa5 {[%clk
0:00:57.7]} 33... Rxa5 {[%clk 0:00:50.2]} 34. Rxa5 {[%clk 0:00:57.1]} 34... Ke7
{[%clk 0:00:49.2]} 35. Ra6 {[%clk 0:00:51.6]} 35... Rc7 {[%clk 0:00:45]} 36. Kc3
{[%clk 0:00:45.8]} 36... Kd7 {[%clk 0:00:35.9]} 37. Bd3 {[%clk 0:00:40.6]} 37...
Rb7 {[%clk 0:00:33.5]} 38. Bc2 {[%clk 0:00:39.6]} 38... Kc7 {[%clk 0:00:32]} 39.
Ba4 {[%clk 0:00:38.9]} 39... Rb6 {[%clk 0:00:31.8]} 40. Rxb6 {[%clk 0:00:38.5]}
40... Kxb6 {[%clk 0:00:32.7]} 41. Kb4 {[%clk 0:00:38.8]} 41... c5+ {[%clk
0:00:31.3]} 42. dxc5+ {[%clk 0:00:38.1]} 42... Kc7 {[%clk 0:00:32.2]} 43. Kc3
{[%clk 0:00:38.2]} 43... e5 {[%clk 0:00:33.1]} 44. fxe5 {[%clk 0:00:37.1]} 44...
h5 {[%clk 0:00:34]} 45. gxh6 {[%clk 0:00:36.6]} 45... f4 {[%clk 0:00:34.9]} 46.
exf4 {[%clk 0:00:36.7]} 46... d4+ {[%clk 0:00:35.8]} 47. Kxd4 {[%clk 0:00:36.9]}
47... Kb7 {[%clk 0:00:36.7]} 48. h7 {[%clk 0:00:36.5]} 48... Ka6 {[%clk
0:00:37.6]} 49. Kc4 {[%clk 0:00:34.1]} 49... Ka5 {[%clk 0:00:38.5]} 50. Bc6
{[%clk 0:00:33.9]} 50... Ka6 {[%clk 0:00:38.7]} 51. h8=Q {[%clk 0:00:33.5]}
51... Ka7 {[%clk 0:00:39.6]} 52. Qa8# {[%clk 0:00:33.6]} 1-0

[Event "Late-Titled-Tuesday-Blitz-February-13-2024"]
[Site "Chess.com"]
[Date "2024.02.13"]
[Round "4"]
[White "GMBenjaminBok"]
[Black "krzyzan94"]
[Result "1-0"]
[WhiteElo "2977"]
[BlackElo "2786"]
[TimeControl "180+1"]
[EndTime "14:38:13 PST"]
[Termination "GMBenjaminBok won by resignation"]

1. d4 {[%clk 0:03:00.9]} 1... Nf6 {[%clk 0:02:54.8]} 2. c4 {[%clk 0:03:00.8]}
2... e6 {[%clk 0:02:54.1]} 3. Nc3 {[%clk 0:03:01.3]} 3... c5 {[%clk 0:02:47.9]}
4. Nf3 {[%clk 0:02:56.4]} 4... cxd4 {[%clk 0:02:45.7]} 5. Nxd4 {[%clk
0:02:57.3]} 5... Nc6 {[%clk 0:02:42.3]} 6. g3 {[%clk 0:02:56.8]} 6... Bc5 {[%clk
0:02:38.9]} 7. Nb3 {[%clk 0:02:56.3]} 7... Be7 {[%clk 0:02:38.6]} 8. Bg2 {[%clk
0:02:56.7]} 8... O-O {[%clk 0:02:39.2]} 9. O-O {[%clk 0:02:56.9]} 9... b6 {[%clk
0:02:36.2]} 10. Bf4 {[%clk 0:02:56.2]} 10... Bb7 {[%clk 0:02:36.3]} 11. Qd2
{[%clk 0:02:56.5]} 11... Rc8 {[%clk 0:02:34.8]} 12. Rfd1 {[%clk 0:02:56.1]}
12... h6 {[%clk 0:02:29.1]} 13. Rac1 {[%clk 0:02:55.5]} 13... a6 {[%clk
0:02:17.4]} 14. h3 {[%clk 0:02:46.8]} 14... e5 {[%clk 0:01:48.3]} 15. Bxe5
{[%clk 0:02:35.3]} 15... Nxe5 {[%clk 0:01:47.7]} 16. Bxb7 {[%clk 0:02:35.9]}
16... Nxc4 {[%clk 0:01:43.2]} 17. Qc2 {[%clk 0:02:36.1]} 17... Rc7 {[%clk
0:01:32.5]} 18. Bxa6 {[%clk 0:02:36.1]} 18... Qa8 {[%clk 0:01:22.6]} 19. Bb5
{[%clk 0:02:08.2]} 19... h5 {[%clk 0:01:22.8]} 20. Nd5 {[%clk 0:01:38.5]} 20...
Nxd5 {[%clk 0:00:43]} 21. Bxc4 {[%clk 0:01:38.8]} 21... b5 {[%clk 0:00:41.4]}
22. Bxd5 {[%clk 0:01:33.4]} 22... Rxc2 {[%clk 0:00:42.3]} 23. Bxa8 {[%clk
0:01:33.1]} 23... Rxc1 {[%clk 0:00:43]} 24. Nxc1 {[%clk 0:01:29]} 24... Rxa8
{[%clk 0:00:43.4]} 25. Rxd7 {[%clk 0:01:29.4]} 25... Bf6 {[%clk 0:00:37.7]} 26.
Rd2 {[%clk 0:01:22.9]} 26... b4 {[%clk 0:00:38.2]} 27. Rc2 {[%clk 0:01:10]}
27... Rb8 {[%clk 0:00:35.2]} 28. b3 {[%clk 0:00:58.3]} 28... h4 {[%clk
0:00:28.9]} 29. gxh4 {[%clk 0:00:50.1]} 29... Bxh4 {[%clk 0:00:28.5]} 30. Nd3
{[%clk 0:00:49.5]} 30... Be7 {[%clk 0:00:25.9]} 31. Rc4 {[%clk 0:00:41.6]} 31...
Ra8 {[%clk 0:00:26.4]} 32. Nxb4 {[%clk 0:00:40]} 32... Bxb4 {[%clk 0:00:26.6]}
33. Rxb4 {[%clk 0:00:40.9]} 33... Rxa2 {[%clk 0:00:27.1]} 34. e3 {[%clk
0:00:41.6]} 34... g5 {[%clk 0:00:23.2]} 35. Rg4 {[%clk 0:00:38.1]} 35... f6
{[%clk 0:00:21.3]} 36. h4 {[%clk 0:00:38.4]} 36... Kf7 {[%clk 0:00:02.3]} 37.
hxg5 {[%clk 0:00:38.5]} 37... f5 {[%clk 0:00:02.7]} 38. Ra4 {[%clk 0:00:32.5]}
38... Kg6 {[%clk 0:00:02.8]} 39. Rxa2 {[%clk 0:00:32.5]} 1-0

[Event "Late-Titled-Tuesday-Blitz-February-13-2024"]
[Site "Chess.com"]
[Date "2024.02.13"]
[Round "4"]
[White "ChessSwole"]
[Black "ritanovikova"]
[Result "1-0"]
[WhiteElo "2672"]
[BlackElo "2216"]
[TimeControl "180+1"]
[EndTime "14:38:13 PST"]
[Termination "ChessSwole won on time"]

1. d4 {[%clk 0:03:00.9]} 1... Nf6 {[%clk 0:02:56.5]} 2. c4 {[%clk 0:03:01.1]}
2... e6 {[%clk 0:02:56.4]} 3. Nf3 {[%clk 0:03:01.1]} 3... b6 {[%clk 0:02:55]} 4.
g3 {[%clk 0:03:00.7]} 4... Bb7 {[%clk 0:02:55]} 5. Bg2 {[%clk 0:03:00.5]} 5...
d5 {[%clk 0:02:53.8]} 6. cxd5 {[%clk 0:02:58.8]} 6... exd5 {[%clk 0:02:52.9]} 7.
O-O {[%clk 0:02:58.7]} 7... Be7 {[%clk 0:02:50.2]} 8. Nc3 {[%clk 0:02:57.4]}
8... O-O {[%clk 0:02:47.8]} 9. Ne5 {[%clk 0:02:55.4]} 9... c6 {[%clk 0:02:45.8]}
10. Qa4 {[%clk 0:02:53.9]} 10... Qc7 {[%clk 0:02:40.5]} 11. Be3 {[%clk
0:02:38.8]} 11... Nbd7 {[%clk 0:02:37.2]} 12. Nxd7 {[%clk 0:02:27.2]} 12... Qxd7
{[%clk 0:01:52.3]} 13. Bg5 {[%clk 0:02:23.9]} 13... Rfe8 {[%clk 0:01:48.1]} 14.
Bxf6 {[%clk 0:02:18.7]} 14... b5 {[%clk 0:01:30.3]} 15. Qc2 {[%clk 0:02:18.4]}
15... Bxf6 {[%clk 0:01:28.4]} 16. e3 {[%clk 0:02:18.5]} 16... Rac8 {[%clk
0:01:16]} 17. b4 {[%clk 0:02:13.8]} 17... Be7 {[%clk 0:01:13.9]} 18. Rab1 {[%clk
0:02:12.6]} 18... Bd6 {[%clk 0:01:13]} 19. Ne2 {[%clk 0:01:59.3]} 19... Qe7
{[%clk 0:01:11]} 20. Qd2 {[%clk 0:01:52.2]} 20... a5 {[%clk 0:01:06.9]} 21. bxa5
{[%clk 0:01:45.4]} 21... Ra8 {[%clk 0:01:06.6]} 22. Nc1 {[%clk 0:01:39.8]} 22...
Ra7 {[%clk 0:00:47]} 23. Nb3 {[%clk 0:01:35.6]} 23... Bb4 {[%clk 0:00:38]} 24.
Qc2 {[%clk 0:01:35.8]} 24... Bxa5 {[%clk 0:00:36.7]} 25. Nc5 {[%clk 0:01:36]}
25... Bb6 {[%clk 0:00:29]} 26. Nd3 {[%clk 0:01:30.8]} 26... Rea8 {[%clk
0:00:27.4]} 27. Rb2 {[%clk 0:01:29.9]} 27... f6 {[%clk 0:00:25.2]} 28. Nb4
{[%clk 0:01:15.5]} 28... Qd6 {[%clk 0:00:20.8]} 29. Rc1 {[%clk 0:01:13.7]} 29...
Rc8 {[%clk 0:00:20.8]} 30. Bh3 {[%clk 0:01:12.9]} 30... Rc7 {[%clk 0:00:20.2]}
31. Nd3 {[%clk 0:01:04]} 31... Bc8 {[%clk 0:00:18.4]} 32. Bxc8 {[%clk 0:01:02]}
32... Rxc8 {[%clk 0:00:18]} 33. Rxb5 {[%clk 0:01:00.8]} 33... Qd8 {[%clk
0:00:04.9]} 34. Nf4 {[%clk 0:00:55.1]} 34... Qd7 {[%clk 0:00:02.6]} 35. Rxb6
{[%clk 0:00:54.5]} 35... g5 {[%clk 0:00:01.4]} 36. Nh5 {[%clk 0:00:53.2]} 36...
Qf7 {[%clk 0:00:01.3]} 37. g4 {[%clk 0:00:44.4]} 37... Qe6 {[%clk 0:00:01.4]}
38. h3 {[%clk 0:00:42.9]} 1-0